bitfinex-derivatives/quotes_ETHF0:USTF0_20250314
["timestamp","ask_amount","ask_price","bid_price","bid_amount"]
[1741952161290,1.04985,1905.2,1905.0,0.6875]
[1741952161491,1.04985,1905.2,1905.1,1.04989]
[1741952161896,1.3946,1905.3,1905.1,1.04989]
[1741952161897,1.3946,1905.3,1905.1,3.2078]
[1741952162100,2.297,1905.6,1905.5,1.04967]
[1741952162297,3.6916,1905.6,1905.3,3.2078]
[1741952162486,3.6916,1905.6,1905.3,3.9214]
[1741952162487,1.3946,1905.5,1905.3,3.9214]
[1741952162692,1.04973,1905.4,1905.3,1.76334]
[1741952162897,1.76693,1905.4,1905.3,1.76334]
[1741952163297,3.15733,1905.4,1905.3,1.76334]
[1741952164097,1.0498,1905.3,1905.1,4.8863]
[1741952164303,2.4402,1905.3,1905.2,1.04978]
[1741952164502,1.3904,1905.3,1905.1,0.6727]
[1741952164797,1.04995,1905.1,1905.0,1.04992]
[1741952165494,2.44035,1905.1,1905.0,1.04992]
[1741952165702,2.44029,1905.1,1905.0,1.04992]
[1741952166699,1.3904,1905.1,1905.0,1.04992]
[1741952166895,2.44029,1905.1,1905.0,1.04992]
[1741952167702,1.04995,1905.0,1904.9,7.30065]
[1741952167903,2.44935,1905.0,1904.9,7.30065]
[1741952168093,3.15635,1905.0,1904.9,7.30065]
[1741952168490,3.15635,1905.0,1904.9,4.8863]
[1741952168694,2.1064,1905.0,1904.9,5.9363]
[1741952168894,1.04986,1905.2,1904.9,4.8863]
[1741952169106,2.44926,1905.2,1905.1,1.04989]
[1741952169295,1.04989,1905.1,1905.0,3.7812]
[1741952169497,2.38899,1905.1,1905.0,3.7812]
[1741952170594,1.3391,1905.1,1905.0,3.7812]
[1741952171306,3.2078,1905.3,1905.2,1.04978]
[1741952171604,1.3391,1905.3,1905.2,1.04978]
[1741952171800,2.38888,1905.3,1905.2,1.04978]
[1741952171998,1.3391,1905.3,1905.2,1.04978]
[1741952172600,1.3391,1905.3,1905.1,1.3117]
[1741952172601,4.25751,1905.5,1905.1,4.5195]
[1741952172805,6.55451,1905.5,1905.4,1.04973]
[1741952173197,7.88011,1905.5,1905.4,1.04973]
[1741952173705,7.88011,1905.5,1905.4,2.47863]
[1741952174405,7.88007,1905.5,1905.4,2.47863]
[1741952174604,6.8304,1905.5,1905.3,0.6578]
[1741952174797,3.06453,1905.4,1905.3,3.13644]
[1741952175904,5.5048,1905.5,1905.4,1.04973]
[1741952176108,7.87857,1905.5,1905.4,1.3724]
[1741952176709,7.87857,1905.5,1905.4,2.42213]
[1741952179111,6.8289,1905.5,1905.4,2.42213]
[1741952179310,3.2078,1905.5,1905.4,2.42213]
[1741952179503,0.66628001,1905.8,1905.7,1.04956]
[1741952179699,0.00788001,1905.8,1905.7,1.04956]
[1741952180411,0.00788001,1905.8,1905.7,2.41216]
[1741952186515,3.2078,1906.4,1905.7,1.3626]
[1741952186711,1.3817,1906.2,1906.1,1.04934]
[1741952186909,1.3817,1906.2,1906.1,3.11854]
[1741952187618,0.00788001,1906.3,1906.1,4.69251]
[1741952187817,0.00788001,1906.3,1906.2,3.15869]
[1741952188013,1.44338001,1906.3,1906.2,3.15869]
[1741952188213,2.49261001,1906.3,1906.2,2.43079]
[1741952189110,2.49261001,1906.3,1906.2,1.3815]
[1741952189417,1.04934,1906.1,1906.0,4.25715]
[1741952189720,1.0494,1906.0,1905.9,2.43092]
[1741952189916,3.1989,1906.0,1905.9,2.43092]
[1741952193216,3.2078,1906.1,1905.9,1.3815]
[1741952193524,0.00788001,1906.3,1906.2,1.04929]
[1741952194019,0.00788001,1906.3,1906.2,2.43309]
[1741952194422,1.40088001,1906.3,1906.2,2.43309]
[1741952195118,0.00788001,1906.3,1906.2,2.43309]
[1741952196122,1.40088001,1906.3,1906.2,2.43309]
[1741952198128,0.00788001,1906.3,1906.2,2.43309]
[1741952198428,0.00788001,1906.3,1906.2,5.64089]
[1741952200927,1e-08,1906.3,1906.2,10.52719]
[1741952201125,1e-08,1906.3,1906.2,13.02719]
[1741952203037,1e-08,1906.3,1906.2,10.52719]
[1741952208739,1.04923001,1906.3,1906.2,1.3838]
[1741952208937,1.70773001,1906.3,1906.2,2.43309]
[1741952209241,1.04936,1906.1,1906.0,1.04934]
[1741952209540,2.1652,1906.2,1906.1,1.04934]
[1741952209938,1.04934,1906.1,1906.0,2.48666]
[1741952210249,1.4402,1906.1,1906.0,5.69446]
[1741952211150,2.48954,1906.1,1906.0,2.48666]
[1741952212243,2.48954,1906.1,1906.0,1.0494]
[1741952213840,1e-08,1906.3,1906.2,1.04929]
[1741952214043,2.45443001,1906.3,1906.2,1.04929]
[1741952214243,2.45443001,1906.3,1906.2,2.48009]
[1741952214944,1.40520001,1906.3,1906.2,2.48009]
[1741952215243,2.45443001,1906.3,1906.2,2.48009]
[1741952217039,1.40520001,1906.3,1906.2,2.48009]
[1741952217545,2.45443001,1906.3,1906.2,2.48009]
[1741952217949,1.40520001,1906.3,1906.2,2.48009]
[1741952218942,1e-08,1906.3,1906.2,2.48009]
[1741952220338,1.36760001,1906.3,1906.2,2.48009]
[1741952226055,1.36760001,1906.3,1906.1,0.6663]
[1741952226356,1.36760001,1906.3,1906.2,1.04929]
[1741952226555,2.41683001,1906.3,1906.2,1.04929]
[1741952226751,2.41683001,1906.3,1906.2,2.45259]
[1741952227259,1.36760001,1906.3,1906.1,1.71562]
[1741952227460,2.47319,1906.2,1906.1,2.48642]
[1741952227657,3.14569,1906.2,1906.1,2.48642]
[1741952227955,3.14569,1906.2,1906.1,1.04934]
[1741952229261,1.04934,1906.1,1906.0,5.93565]
[1741952229561,3.14104,1906.1,1906.0,5.93565]
[1741952230166,3.14104,1906.1,1906.0,4.8863]
[1741952230359,3.14104,1906.1,1906.0,5.9357]
[1741952230860,3.14104,1906.1,1906.0,1.0494]
[1741952231467,1.04951,1905.9,1905.8,1.04948]
[1741952231667,1.442,1906.0,1905.8,1.4291]
[1741952231869,2.49145,1906.0,1905.9,1.04945]
[1741952233168,1.04945,1905.9,1905.8,2.47855]
[1741952233366,3.16475,1905.9,1905.8,2.47855]
[1741952233766,2.1153,1905.9,1905.6,3.91738001]
[1741952233973,1.4419,1905.8,1905.7,2.39933]
[1741952234268,2.49141,1905.8,1905.7,2.39933]
[1741952234661,1.4419,1905.8,1905.6,1.05747001]
[1741952234861,3.17706,1905.7,1905.6,0.00788001]
[1741952235069,1.04973,1905.4,1905.2,3.9029]
[1741952235261,1.04973,1905.4,1905.3,1.3498]
[1741952235773,1.04971,1905.5,1905.4,1.04971]
[1741952236475,0.6733,1905.6,1905.3,1.35768001]
[1741952236769,1.04973,1905.4,1905.3,2.40743001]
[1741952238070,1.04973,1905.4,1905.3,1.05766001]
[1741952238270,1.04973,1905.4,1905.3,2.50186001]
[1741952238471,1.04973,1905.4,1905.3,1.45208001]
[1741952238659,1.04973,1905.4,1905.3,2.50186001]
[1741952239067,1.04973,1905.4,1905.3,1.45208001]
[1741952239275,4.25753,1905.4,1905.3,0.00788001]
[1741952239568,4.25753,1905.4,1904.9,3.2078]
[1741952239569,2.62454,1905.3,1904.9,3.2078]
[1741952239776,1.04995,1905.0,1904.9,5.65227]
[1741952239967,1.04995,1905.0,1904.9,2.44447]
[1741952241173,1.04995,1905.0,1904.9,2.4445]
[1741952242275,0.00788001,1905.1,1904.9,1.3945]
[1741952242477,1.05781001,1905.1,1905.0,2.44445]
[1741952242975,0.00788001,1905.1,1905.0,2.44445]
[1741952243277,1.05777001,1905.1,1905.0,2.44445]
[1741952244066,0.00788001,1905.1,1905.0,2.44445]
[1741952246573,0.00788001,1905.1,1905.0,1.3945]
[1741952246773,0.00788001,1905.1,1905.0,2.44445]
[1741952247173,1.05777001,1905.1,1905.0,2.44445]
[1741952247367,0.00788001,1905.1,1905.0,2.44445]
[1741952247570,1.05777001,1905.1,1905.0,2.44445]
[1741952247971,0.00788001,1905.1,1905.0,2.44445]
[1741952248976,0.00788001,1905.1,1905.0,5.65225]
[1741952249879,1.45478001,1905.1,1905.0,5.65225]
[1741952250081,0.00788001,1905.1,1905.0,5.65225]
[1741952254983,1.05777001,1905.1,1905.0,2.44445]
[1741952255384,1.73427001,1905.1,1905.0,2.44445]
[1741952255584,3.13667001,1905.1,1905.0,2.44445]
[1741952255882,3.13667001,1905.1,1905.0,1.3945]
[1741952256078,3.13667001,1905.1,1905.0,2.44445]
[1741952257280,2.08678001,1905.1,1905.0,2.44445]
[1741952257481,3.13667001,1905.1,1905.0,2.44445]
[1741952257679,2.08678001,1905.1,1905.0,2.44445]
[1741952258078,0.00788001,1905.1,1905.0,2.44445]
[1741952258876,1.40698001,1905.1,1905.0,2.44445]
[1741952259073,1.04995,1905.0,1904.9,1.04997]
[1741952259277,1.40698001,1905.1,1905.0,1.04995]
[1741952259577,1.04995,1905.0,1904.9,2.36456]
[1741952260486,1.75445,1905.0,1904.9,2.36456]
[1741952265091,1.75445,1905.0,1904.9,2.3646]
[1741952265594,1.75445,1905.0,1904.9,1.3146]
[1741952266389,1.05,1904.9,1904.8,0.00788001]
[1741952266690,3.0726,1904.9,1904.8,0.00788001]
[1741952266884,3.0726,1904.9,1904.6,1.4153]
[1741952266885,2.0226,1904.9,1904.6,1.4153]
[1741952267084,1.05017,1904.6,1904.5,1.72698]
[1741952267391,1.05017,1904.6,1904.5,3.05098]
[1741952268107,2.42327,1904.6,1904.5,3.05102]
[1741952271195,2.42327,1904.6,1904.5,2.0008]
[1741952271397,2.42327,1904.6,1904.5,1.324]
[1741952272093,1.05022,1904.5,1904.4,0.00788001]
[1741952272298,3.13762,1904.5,1904.4,0.00788001]
[1741952273604,3.13762,1904.5,1904.4,1.05816001]
[1741952274795,3.13762,1904.5,1904.4,0.00788001]
[1741952275189,3.13762,1904.5,1904.4,1.05816001]
[1741952275895,3.13762,1904.5,1904.4,2.48876001]
[1741952276297,3.13762,1904.5,1904.4,1.43848001]
[1741952276498,3.13762,1904.5,1904.4,2.48876001]
[1741952279304,2.0874,1904.5,1904.4,2.48876001]
[1741952279495,3.13762,1904.5,1904.4,2.48876001]
[1741952280093,2.0874,1904.5,1904.4,2.48876001]
[1741952280706,3.13762,1904.5,1904.4,2.48876001]
[1741952281007,4.67647506,1904.7,1904.6,1.05017]
[1741952281205,1.3743,1904.7,1904.6,1.05017]
[1741952281603,0.77137506,1904.8,1904.7,1.05011]
[1741952281798,7.3303,1904.9,1904.8,1.05006]
[1741952282001,1.3743,1904.9,1904.8,1.05006]
[1741952282206,3.01498001,1905.1,1904.7,4.6488]
[1741952282412,1.3516,1905.0,1904.9,1.05]
[1741952283107,1.3516,1905.0,1904.9,2.491]
[1741952283312,0.00788001,1905.1,1905.0,1.04995]
[1741952283505,1.05777001,1905.1,1905.0,2.49095]
[1741952283805,1.05777001,1905.1,1905.0,1.441]
[1741952284110,1.05777001,1905.1,1905.0,2.49095]
[1741952284406,0.00788001,1905.1,1905.0,2.49095]
[1741952287204,1.40738001,1905.1,1905.0,2.49095]
[1741952287402,0.00788001,1905.1,1905.0,2.49095]
[1741952288899,1.04967,1905.6,1905.0,2.49095]
[1741952289103,1.454,1905.6,1905.5,1.04967]
[1741952289507,2.50362,1905.6,1905.5,1.04967]
[1741952290111,2.50362,1905.6,1905.5,2.46427]
[1741952290314,1.454,1905.6,1905.5,2.46427]
[1741952291315,2.50362,1905.6,1905.5,2.46427]
[1741952291514,1.454,1905.6,1905.5,2.46427]
[1741952292213,1.454,1905.6,1905.5,3.18747]
[1741952292415,6.84498001,1905.7,1905.6,1.04962]
[1741952292616,7.89454001,1905.7,1905.6,2.42092]
[1741952293011,7.89454001,1905.7,1905.6,1.3713]
[1741952293417,7.89454001,1905.7,1905.6,2.42092]
[1741952293713,6.93135175,1905.7,1905.4,0.68208001]
[1741952294014,2.38195,1905.6,1905.5,1.04963]
[1741952294213,2.38195,1905.6,1905.5,2.42093]
[1741952295420,1.3323,1905.6,1905.5,5.62873]
[1741952295713,26.7818,1906.2,1905.9,1.04945]
[1741952295913,1.4256,1906.0,1905.9,1.04945]
[1741952296114,5.5048,1906.2,1905.9,0.7125]
[1741952296305,1.4256,1906.1,1906.0,1.0494]
[1741952296511,3.2078,1906.2,1905.9,0.7125]
[1741952296712,1.4256,1906.3,1906.0,1.72776]
[1741952296913,1.4256,1906.1,1906.0,1.72776]
[1741952297119,2.47494,1906.1,1906.0,1.72776]
[1741952297820,1.4256,1906.1,1906.0,1.72776]
[1741952298817,1.05715001,1906.3,1906.1,1.0493]
[1741952299121,1.3325,1906.2,1906.1,1.0493]
[1741952300417,1.3325,1906.2,1906.0,0.6784]
[1741952300614,2.38183,1906.2,1906.0,0.6784]
[1741952300814,1.04934,1906.1,1906.0,1.72778]
[1741952301114,1.3862,1906.1,1906.0,1.72778]
[1741952301711,1.3862,1906.1,1905.9,0.7125]
[1741952301918,2.296,1906.2,1906.1,1.04934]
[1741952302116,1.3862,1906.2,1906.1,1.04934]
[1741952302316,1.05711001,1906.3,1906.2,1.04929]
[1741952302518,2.44331001,1906.3,1906.2,1.04929]
[1741952302817,1.39408001,1906.3,1906.2,1.04929]
[1741952303214,2.44331001,1906.3,1906.2,1.04929]
[1741952303522,2.44334001,1906.3,1906.1,1.0493]
[1741952303719,0.00788001,1906.3,1906.0,3.2078]
[1741952304017,1.04929,1906.2,1906.1,1.0493]
[1741952304218,2.42164001,1906.3,1906.0,3.2078]
[1741952304415,1.3645,1906.2,1906.1,1.04934]
[1741952305123,0.00788001,1906.3,1906.2,1.04929]
[1741952305824,1.37238001,1906.3,1906.2,1.04929]
[1741952306821,2.42165001,1906.3,1905.9,3.33611]
[1741952307030,2.05998001,1906.3,1906.2,1.04929]
[1741952307328,0.00788001,1906.3,1906.2,1.04929]
[1741952309728,0.00788001,1906.3,1906.2,2.41649]
[1741952310829,0.00788001,1906.3,1906.2,5.62429]
[1741952312627,0.00788001,1906.3,1906.2,2.41649]
[1741952312824,0.73398001,1906.3,1906.2,2.41649]
[1741952315035,1.78321001,1906.3,1906.2,2.41649]
[1741952315330,0.73398001,1906.3,1906.2,1.74029]
[1741952316334,1.78321001,1906.3,1906.2,1.74029]
[1741952316634,0.73398001,1906.3,1906.2,1.74029]
[1741952316832,0.00788001,1906.3,1906.2,1.74029]
[1741952317033,0.00788001,1906.3,1906.2,4.94809]
[1741952318633,0.7093,1906.7,1906.6,1.04907]
[1741952318937,1.75831,1906.7,1906.6,1.04907]
[1741952319133,1.04907,1906.6,1906.5,3.15917]
[1741952319334,2.36447,1906.6,1906.5,3.15922]
[1741952319534,2.36447,1906.6,1906.5,2.46202]
[1741952319931,2.36447,1906.6,1906.5,1.4129]
[1741952320135,2.36447,1906.6,1906.5,2.46202]
[1741952320839,1.3154,1906.6,1906.4,1.05702001]
[1741952321036,0.71455337,1906.7,1906.4,1.05702001]
[1741952321037,3.04402,1906.5,1906.4,1.05702001]
[1741952321338,3.04402,1906.5,1906.4,0.00788001]
[1741952322437,3.04402,1906.5,1906.4,1.43438001]
[1741952323234,5.33902,1906.5,1906.4,1.43438001]
[1741952324238,5.33902,1906.5,1906.4,2.48356001]
[1741952324840,4.2899,1906.5,1906.4,2.48356001]
[1741952325030,5.33902,1906.5,1906.4,2.48356001]
[1741952325635,3.6104,1906.5,1906.4,2.48356001]
[1741952325841,1.3154,1906.5,1906.4,2.48356001]
[1741952326435,3.69875337,1906.7,1906.4,2.48356001]
[1741952326436,0.71455337,1906.7,1906.4,2.48356001]
[1741952326643,0.00525337,1906.7,1906.6,4.25687]
[1741952326842,0.00525337,1906.7,1906.6,5.62857]
[1741952328238,0.7066,1907.0,1906.6,5.62857]
[1741952328438,1.75545,1907.0,1906.9,1.0489]
[1741952328846,3.10805,1907.0,1906.9,1.0489]
[1741952329847,2.0592,1907.0,1906.9,1.0489]
[1741952330239,3.10805,1907.0,1906.9,1.0489]
[1741952330645,2.0592,1907.0,1906.9,1.0489]
[1741952330947,2.0592,1907.0,1906.9,2.4438]
[1741952331149,2.0592,1907.0,1906.9,1.3949]
[1741952331353,3.10809,1907.0,1906.9,1.0489]
[1741952331546,2.0592,1907.0,1906.7,1.3771]
[1741952331747,2.0206,1906.9,1906.8,1.04896]
[1741952331949,3.0695,1906.9,1906.8,1.04896]
[1741952332545,2.0206,1906.9,1906.4,3.21568001]
[1741952332745,1.04904,1906.7,1906.6,1.04904]
[1741952332945,3.6088,1906.8,1906.7,1.04901]
[1741952333143,3.34396,1906.8,1906.7,1.04901]
[1741952334752,2.295,1906.8,1906.7,1.04901]
[1741952335347,2.295,1906.8,1906.7,1.76091]
[1741952335851,0.7068,1906.9,1906.7,0.7119]
[1741952336146,0.7068,1906.9,1906.8,1.04896]
[1741952336348,0.7068,1906.9,1906.8,2.38816]
[1741952336944,3.0016,1907.0,1906.9,1.0489]
[1741952337151,4.05045,1907.0,1906.9,2.4279]
[1741952337447,0.7066,1907.0,1906.9,2.4279]
[1741952337748,1.75545,1907.0,1906.9,2.4279]
[1741952339847,1.75545,1907.0,1906.9,1.379]
[1741952340054,1.0489,1906.9,1906.8,1.0489]
[1741952340250,1.0489,1906.9,1906.8,2.4463]
[1741952340753,1.47461916,1907.0,1906.7,0.7119]
[1741952340939,1.04896,1906.8,1906.7,1.04897]
[1741952341645,1.04896,1906.8,1906.7,2.44637]
[1741952345952,6.39174916,1907.0,1906.5,0.7]
[1741952346157,3.2078,1906.9,1906.6,1.3359]
[1741952346355,4.93103,1906.9,1906.8,1.04896]
[1741952347661,1.04896,1906.8,1906.7,2.37616]
[1741952347852,5.69905916,1906.9,1906.8,1.04896]
[1741952348049,4.93104,1906.9,1906.8,2.37616]
[1741952348555,4.25674,1906.9,1906.8,2.37616]
[1741952348758,4.94394,1906.9,1906.8,2.37616]
[1741952349256,5.65444,1906.9,1906.8,2.37616]
[1741952349760,5.6544,1906.9,1906.8,2.37616]
[1741952349964,4.6055,1906.9,1906.8,2.37616]
[1741952350166,10.21241,1907.5,1907.0,1.04885]
[1741952350460,1.04868,1907.3,1907.2,1.04869]
[1741952350968,2.44638,1907.3,1907.2,1.04869]
[1741952351269,2.44638,1907.3,1907.2,1.3891]
[1741952351663,5.65418,1907.3,1907.2,1.3891]
[1741952351964,5.65418,1907.3,1906.9,0.6648]
[1741952351965,1.04885,1907.1,1907.0,1.04883]
[1741952352257,1.04885,1907.1,1907.0,3.14193]
[1741952352664,2.47665,1907.1,1907.0,3.14193]
[1741952353157,1.4278,1907.1,1907.0,3.14193]
[1741952354367,4.2565,1907.3,1907.2,1.04874]
[1741952354863,5.5018,1907.3,1907.2,1.04874]
[1741952355264,3.2078,1907.3,1907.2,1.04874]
[1741952355465,5.5018,1907.3,1907.2,1.04874]
[1741952355666,6.8904,1907.3,1907.2,1.04874]
[1741952355864,1.3886,1907.3,1907.2,1.04874]
[1741952356065,3.2078,1907.8,1907.7,1.04846]
[1741952356371,3.2078,1908.0,1907.5,5.82917]
[1741952356577,3.2078,1908.0,1907.8,1.0484]
[1741952356578,1.13465511,1907.9,1907.8,1.0484]
[1741952356866,1.04835,1907.9,1907.8,1.0484]
[1741952357260,1.04839,1907.9,1907.8,1.04841]
[1741952357557,1.3886,1907.9,1907.8,2.43961]
[1741952357963,2.43695,1907.9,1907.8,2.43961]
[1741952358970,2.43695,1907.9,1907.8,2.43961]
[1741952359567,1.04846,1907.7,1907.6,1.75577001]
[1741952359768,6.55026,1907.7,1907.6,0.00788001]
[1741952360171,1.04863,1907.4,1907.3,3.16588]
[1741952360557,1.04863,1907.4,1907.3,1.4425]
[1741952360757,1.04863,1907.4,1907.1,1.77575]
[1741952360758,1.04874,1907.2,1907.1,1.77575]
[1741952360964,1.04874,1907.2,1907.1,3.21825]
[1741952361257,1.04874,1907.2,1907.1,3.21829]
[1741952361456,3.08694,1907.2,1907.1,3.21829]
[1741952361664,2.0382,1907.2,1907.1,3.21829]
[1741952361859,1.3435,1907.2,1907.1,3.21829]
[1741952362064,0.69318001,1907.3,1907.1,2.1695]
[1741952362272,1.05656001,1907.3,1907.2,2.37624]
[1741952362569,0.00788001,1907.3,1907.2,2.37624]
[1741952362772,1.35138001,1907.3,1907.2,2.37624]
[1741952363363,0.00788001,1907.3,1907.2,2.37624]
[1741952364565,1.37788001,1907.3,1907.2,2.37624]
[1741952365273,0.00788001,1907.3,1907.2,2.37624]
[1741952370467,1.40898001,1907.3,1907.2,2.37624]
[1741952370667,2.45766001,1907.3,1907.2,2.37624]
[1741952374173,4.75166001,1907.3,1907.2,2.37624]
[1741952375272,1.04879,1907.1,1907.0,1.05668001]
[1741952375576,1.04879,1907.1,1907.0,2.45958001]
[1741952376778,1.05656001,1907.3,1907.2,1.04874]
[1741952377075,1.04874,1907.2,1907.1,2.40186]
[1741952377275,6.33681,1907.2,1906.5,3.2078]
[1741952377477,1.049,1906.8,1906.7,2.4021]
[1741952377673,1.049,1906.8,1906.7,1.3531]
[1741952377867,3.161,1906.8,1906.7,1.3531]
[1741952378668,3.161,1906.8,1906.7,2.40211]
[1741952378868,2.112,1906.8,1906.7,2.40211]
[1741952379081,1.4209,1906.8,1906.7,2.40211]
[1741952379265,5.5058,1906.9,1906.7,1.3531]
[1741952379469,6.9267,1906.9,1906.8,2.40206]
[1741952379675,7.9756,1906.9,1906.8,2.40206]
[1741952380179,5.5058,1906.9,1906.8,2.40206]
[1741952380974,6.8346,1906.9,1906.8,2.40206]
[1741952381178,1.48784297,1907.1,1906.8,1.3531]
[1741952381375,2.0495,1907.1,1907.0,1.04885]
[1741952381574,2.81664297,1907.1,1907.0,1.04885]
[1741952381775,2.81664297,1907.1,1907.0,2.36185]
[1741952382279,2.81666248,1907.1,1907.0,2.36185]
[1741952382481,2.8166675,1907.1,1907.0,2.36185]
[1741952382784,2.81666643,1907.1,1907.0,2.36185]
[1741952383080,2.0495,1907.1,1907.0,2.36185]
[1741952383283,3.86543848,1907.1,1907.0,1.313]
[1741952383583,3.76049,1907.1,1907.0,1.313]
[1741952383780,6.96829,1907.1,1906.9,1.04887]
[1741952383984,2.4343,1907.0,1906.9,1.0489]
[1741952384884,1.3854,1907.0,1906.8,1.3403]
[1741952385086,1.3854,1906.9,1906.8,1.3403]
[1741952385290,1.3854,1906.9,1906.8,2.38926]
[1741952387597,3.9285,1907.1,1906.8,2.38926]
[1741952387906,4.25659,1907.1,1907.0,1.04885]
[1741952388297,4.25659,1907.1,1907.0,1.74795]
[1741952388497,1.04895,1906.9,1906.8,1.04893]
[1741952388898,1.04895,1906.9,1906.8,2.50343]
[1741952389404,2.45795,1906.9,1906.8,2.50343]
[1741952392302,1.04896,1906.8,1906.7,1.04898]
[1741952392503,2.37176,1906.8,1906.7,2.48188]
[1741952392702,2.37176,1906.8,1906.7,1.4329]
[1741952392905,1.04901,1906.7,1906.6,0.00788001]
[1741952393204,3.70551,1906.7,1906.6,0.00788001]
[1741952393398,5.8643,1906.7,1906.3,1.77041]
[1741952393704,1.04918,1906.4,1906.3,1.04921]
[1741952393905,6.24547,1906.6,1906.1,5.313]
[1741952393906,1.04926,1906.3,1906.2,3.18677]
[1741952394096,3.04766,1906.3,1906.2,3.18677]
[1741952394292,3.04766,1906.3,1906.2,2.48219]
[1741952395395,1.04929,1906.2,1906.1,1.05721001]
[1741952395596,2.44619,1906.2,1906.1,0.00788001]
[1741952395804,4.74719,1906.2,1906.1,0.00788001]
[1741952398012,4.74719,1906.2,1906.1,2.49972001]
[1741952399103,4.74719,1906.2,1906.1,1.45038001]
[1741952400309,4.74719,1906.2,1906.1,2.49972001]
[1741952400509,3.21568001,1906.3,1906.2,1.04929]
[1741952400711,6.56691001,1906.3,1906.2,2.49179]
[1741952400910,6.56691001,1906.3,1906.2,3.17849]
[1741952401409,3.35911001,1906.3,1906.2,3.17849]
[1741952401713,4.76791001,1906.3,1906.2,2.1292]
[1741952401913,4.76791001,1906.3,1906.2,3.17849]
[1741952402611,1.41668001,1906.3,1906.2,3.17849]
[1741952402809,0.00788001,1906.3,1906.2,3.17849]
[1741952403614,1.05711001,1906.3,1906.2,3.17849]
[1741952404617,1.05711001,1906.3,1906.2,2.1292]
[1741952404915,1.73031001,1906.3,1906.2,2.49179]
[1741952405114,3.12741001,1906.3,1906.2,1.4425]
[1741952405312,3.12741001,1906.3,1906.2,2.49179]
[1741952405717,1.40498001,1906.3,1906.2,2.49179]
[1741952405918,2.45421001,1906.3,1906.2,2.49179]
[1741952406118,0.00788001,1906.3,1906.2,2.49179]
[1741952406314,0.00788001,1906.3,1906.2,3.15799]
[1741952407014,1.05711001,1906.3,1906.2,2.1087]
[1741952407211,3.36611001,1906.3,1906.2,2.1087]
[1741952407411,5.47321001,1906.3,1906.2,2.1087]
[1741952407919,1.04929,1906.2,1906.1,0.00788001]
[1741952408112,2.47729,1906.2,1906.1,0.00788001]
[1741952408417,2.47729,1906.2,1906.1,1.45998001]
[1741952408823,3.20049,1906.2,1906.1,1.45998001]
[1741952409510,3.20049,1906.2,1906.1,2.50932001]
[1741952409820,3.20049,1906.2,1906.1,1.45998001]
[1741952411008,6.40829,1906.2,1906.1,0.00788001]
[1741952411516,2.1512,1906.2,1906.1,0.00788001]
[1741952411722,2.47729,1906.2,1906.1,1.42038001]
[1741952412315,5.68509,1906.2,1906.1,1.42038001]
[1741952413119,1.04929,1906.2,1906.1,1.42038001]
[1741952413321,5.68449,1906.2,1906.1,1.42038001]
[1741952414620,5.68449,1906.2,1906.1,0.00788001]
[1741952415423,2.47669,1906.2,1906.1,0.00788001]
[1741952415614,2.47669,1906.2,1906.1,1.43608001]
[1741952416824,2.47669,1906.2,1906.1,0.00788001]
[1741952422827,5.68449,1906.2,1906.1,0.00788001]
[1741952423022,5.68449,1906.2,1905.7,0.72]
[1741952423023,1.04951,1905.8,1905.7,0.72]
[1741952423525,1.04951,1905.8,1905.2,3.2078]
[1741952423526,2.62378,1905.8,1905.2,3.2078]
[1741952423820,1.04975,1905.4,1905.3,1.04978]
[1741952424424,1.04975,1905.4,1905.3,3.16098]
[1741952426627,1.04975,1905.4,1905.3,2.1112]
[1741952427926,1.04975,1905.4,1905.3,3.16098]
[1741952428422,2.48425,1905.4,1905.3,3.16098]
[1741952429028,2.48425,1905.4,1905.3,2.1112]
[1741952429230,2.48425,1905.4,1905.3,3.16098]
[1741952430032,2.48425,1905.4,1905.3,2.1112]
[1741952430526,2.48423,1905.4,1905.3,3.16098]
[1741952430725,1.4345,1905.4,1905.3,3.16098]
[1741952430921,1.3862,1905.7,1905.3,2.1112]
[1741952431235,1.04967,1905.5,1905.4,2.36667]
[1741952431641,1.04967,1905.5,1905.4,1.317]
[1741952431829,2.47647,1905.5,1905.4,1.317]
[1741952432435,2.47647,1905.5,1905.4,2.36673]
[1741952432830,2.47647,1905.5,1905.4,1.317]
[1741952434530,2.47647,1905.5,1905.4,2.36673]
[1741952437537,5.5088,1905.6,1905.4,1.317]
[1741952437727,3.34762,1905.6,1905.5,2.36152]
[1741952437928,3.34762,1905.6,1905.5,1.3119]
[1741952438132,4.75552,1905.6,1905.5,2.36157]
[1741952438537,4.75552,1905.6,1905.5,1.3119]
[1741952439043,5.42122,1905.6,1905.5,1.3119]
[1741952439447,1.04978,1905.3,1905.2,0.67268001]
[1741952439745,3.34578,1905.3,1905.2,0.00788001]
[1741952440143,4.02978,1905.3,1905.2,0.00788001]
[1741952440843,5.46878,1905.3,1905.2,1.43508001]
[1741952441239,4.78478,1905.3,1905.2,1.43508001]
[1741952441846,4.78478,1905.3,1905.2,2.48492001]
[1741952442046,4.78978,1905.3,1905.2,2.48492001]
[1741952442243,2.301,1905.3,1905.2,2.48492001]
[1741952442949,4.7917,1905.5,1905.4,1.04973]
[1741952443546,4.7917,1905.5,1905.4,3.18253]
[1741952444540,2.4887,1905.5,1905.4,3.18253]
[1741952444739,4.7897,1905.5,1905.4,3.18253]
[1741952445141,4.7897,1905.5,1905.4,2.1328]
[1741952445448,4.7897,1905.5,1905.4,3.18253]
[1741952446649,3.74,1905.5,1905.2,0.00788001]
[1741952446944,1.04978,1905.3,1905.2,1.05766001]
[1741952447250,3.21246,1905.4,1905.3,1.04978]
[1741952448042,3.21246,1905.4,1905.3,2.37348]
[1741952448745,3.21246,1905.4,1905.3,1.3237]
[1741952449144,6.42026,1905.4,1905.3,1.3237]